bitfinex/quotes_BTCUSD_20241028
["timestamp","ask_amount","ask_price","bid_price","bid_amount"]
[1730128981571,0.262853,68562.0,68554.0,0.2176026]
[1730128981572,0.43741986,68562.0,68554.0,0.2176026]
[1730128981803,0.43635681,68562.0,68548.0,0.0775]
[1730128982279,0.30135681,68562.0,68561.0,0.081523]
[1730128982497,0.30335681,68562.0,68561.0,0.1055053]
[1730128982686,0.30135681,68562.0,68561.0,0.081523]
[1730128983375,0.31735681,68562.0,68561.0,0.081523]
[1730128983600,0.30135681,68562.0,68561.0,0.081523]
[1730128983833,0.159853,68562.0,68561.0,0.081523]
[1730128984062,0.173853,68562.0,68561.0,0.081523]
[1730128985407,0.175853,68562.0,68561.0,0.519083]
[1730128986117,0.147853,68562.0,68561.0,0.519083]
[1730128986332,0.161853,68562.0,68561.0,0.519083]
[1730128986545,0.175853,68562.0,68561.0,0.519083]
[1730128986763,0.173853,68562.0,68561.0,0.519083]
[1730128986990,0.159853,68562.0,68561.0,0.519083]
[1730128987194,0.173853,68562.0,68561.0,0.519083]
[1730128987410,0.159853,68562.0,68561.0,0.519083]
[1730128987624,0.028,68562.0,68561.0,0.519083]
[1730128988068,0.173853,68562.0,68561.0,0.519083]
[1730128988293,0.028,68562.0,68561.0,0.519083]
[1730128988719,0.014,68562.0,68561.0,0.519083]
[1730128988934,0.159853,68562.0,68561.0,0.519083]
[1730128989153,0.173853,68562.0,68561.0,0.519083]
[1730128989666,0.175853,68562.0,68561.0,0.519083]
[1730128989883,0.173853,68562.0,68561.0,0.519083]
[1730128990330,0.028,68562.0,68561.0,0.519083]
[1730128991012,0.028,68562.0,68561.0,1.38388416]
[1730128991224,0.028,68562.0,68561.0,1.32212322]
[1730128991447,0.028,68562.0,68561.0,1.00074763]
[1730128991880,0.014,68562.0,68561.0,0.85489263]
[1730128992100,0.028,68562.0,68561.0,1.00074763]
[1730128992557,0.014,68562.0,68561.0,1.00074763]
[1730128992777,0.001,68562.0,68561.0,1.00274763]
[1730128992996,0.002,68562.0,68561.0,1.00074763]
[1730128993433,0.003,68562.0,68561.0,1.00274763]
[1730128993670,0.002,68562.0,68561.0,1.00274763]
[1730128995543,0.003,68562.0,68561.0,1.00274763]
[1730128996221,0.003,68562.0,68561.0,1.04642862]
[1730128996468,0.003,68562.0,68561.0,1.00274763]
[1730128997144,0.001646,68579.0,68577.0,0.14582]
[1730128997373,0.001646,68579.0,68578.0,0.2198574]
[1730128997600,0.2176026,68592.0,68584.0,0.145806]
[1730128997829,0.2176026,68592.0,68580.0,0.291628]
[1730128997830,0.2176026,68592.0,68591.0,0.40697178]
[1730128998094,0.2176026,68601.0,68598.0,0.145776]
[1730128998312,0.2176026,68601.0,68600.0,0.17087178]
[1730128998558,0.2176026,68608.0,68600.0,0.17087178]
[1730128998779,0.2176026,68608.0,68604.0,0.17087178]
[1730128998993,0.291509,68609.0,68605.0,0.65489]
[1730128999439,0.145759,68606.0,68605.0,0.65489]
[1730128999653,0.291496,68612.0,68605.0,0.65489]
[1730128999893,0.291491,68613.0,68608.0,0.17087178]
[1730129000104,0.145752,68610.0,68609.0,0.65486]
[1730129000323,0.291491,68613.0,68609.0,0.65486]
[1730129000324,0.437238,68613.0,68609.0,0.65486]
[1730129000535,0.145751,68610.0,68609.0,0.65486]
[1730129000746,0.291491,68613.0,68609.0,0.65486]
[1730129000747,0.145748,68612.0,68609.0,0.65486]
[1730129000990,0.145741,68615.0,68610.0,0.0815]
[1730129001201,0.2176026,68619.0,68610.0,0.73635]
[1730129001421,0.145748,68612.0,68610.0,0.73635]
[1730129001639,0.291478,68616.0,68610.0,0.73635]
[1730129001640,0.145741,68615.0,68610.0,0.73635]
[1730129001869,0.145735,68618.0,68610.0,0.73635]
[1730129002094,0.015646,68611.0,68610.0,0.73635]
[1730129002320,0.002646,68611.0,68610.0,0.74235]
[1730129002785,0.001646,68611.0,68610.0,0.74035]
[1730129003016,0.001646,68611.0,68610.0,0.73635]
[1730129003274,0.001646,68611.0,68610.0,0.74235]
[1730129003532,0.148395,68611.0,68610.0,0.65485]
[1730129003961,0.148395,68611.0,68610.0,0.65985]
[1730129004192,0.149395,68611.0,68610.0,0.66685]
[1730129004648,0.148395,68611.0,68610.0,0.65985]
[1730129005150,0.149395,68611.0,68610.0,0.66685]
[1730129005360,0.149395,68611.0,68610.0,0.66185]
[1730129005361,0.148395,68611.0,68610.0,0.66185]
[1730129005576,0.148395,68611.0,68610.0,0.66385]
[1730129005813,0.148395,68611.0,68610.0,0.65485]
[1730129006024,0.150395,68611.0,68610.0,0.65785]
[1730129006243,0.150395,68611.0,68610.0,0.65885]
[1730129006718,0.148395,68611.0,68610.0,0.65885]
[1730129007148,0.148395,68611.0,68610.0,0.65585]
[1730129007593,0.162395,68611.0,68610.0,0.65585]
[1730129008521,0.016646,68611.0,68610.0,0.65585]
[1730129009206,0.015646,68611.0,68610.0,0.65485]
[1730129009436,0.161395,68611.0,68610.0,0.65485]
[1730129009666,0.175395,68611.0,68610.0,0.65585]
[1730129010374,0.33289881,68611.0,68610.0,0.65585]
[1730129011133,0.31889881,68611.0,68610.0,0.65585]
[1730129011588,0.33289881,68611.0,68610.0,0.65585]
[1730129012018,0.31889881,68611.0,68610.0,0.65585]
[1730129012235,0.31889881,68611.0,68610.0,0.65485]
[1730129012455,0.31689881,68611.0,68610.0,0.65485]
[1730129012668,0.33089881,68611.0,68610.0,0.65485]
[1730129012892,0.33289881,68611.0,68610.0,0.65485]
[1730129013108,0.34689881,68611.0,68610.0,0.65485]
[1730129013559,0.45689881,68611.0,68610.0,0.65485]
[1730129014027,0.55899881,68611.0,68610.0,0.65485]
[1730129014251,1.38296981,68611.0,68610.0,0.65485]
[1730129015155,1.60996981,68611.0,68610.0,0.65485]
[1730129015396,0.78599881,68611.0,68610.0,0.65485]
[1730129015619,3.67922781,68611.0,68610.0,0.65485]
[1730129016279,3.80362574,68611.0,68610.0,0.65485]
[1730129016497,3.80862574,68611.0,68610.0,0.6257]
[1730129016713,3.68422781,68611.0,68610.0,0.59655]
[1730129016938,3.70706963,68611.0,68610.0,0.59655]
[1730129017158,3.68422781,68611.0,68610.0,0.59655]
[1730129017816,3.67022781,68611.0,68610.0,0.59655]
[1730129018031,3.83473162,68611.0,68610.0,0.59655]
[1730129018245,3.68405231,68611.0,68610.0,0.59655]
[1730129018457,0.78582331,68611.0,68610.0,0.59655]
[1730129018676,5.82182331,68611.0,68610.0,0.59655]
[1730129018901,5.84982331,68611.0,68610.0,0.59655]
[1730129019155,5.84982331,68611.0,68610.0,0.5091]
[1730129019370,6.00032712,68611.0,68610.0,0.5091]
[1730129019587,6.01032712,68611.0,68610.0,0.5091]
[1730129019812,6.03317009,68611.0,68610.0,0.5091]
[1730129020038,6.01917009,68611.0,68610.0,0.5091]
[1730129020263,5.86866628,68611.0,68610.0,0.5091]
[1730129020478,5.88266628,68611.0,68610.0,0.5091]
[1730129020715,5.86866628,68611.0,68610.0,0.5091]
[1730129021161,5.88266628,68611.0,68610.0,0.5091]
[1730129022468,5.87266628,68611.0,68610.0,0.5091]
[1730129022684,5.88266628,68611.0,68610.0,0.5091]
[1730129022919,2.72722228,68611.0,68610.0,0.5091]
[1730129023147,1.24087328,68611.0,68610.0,0.5091]
[1730129023373,1.07219931,68611.0,68610.0,0.5091]
[1730129023829,1.04919931,68611.0,68610.0,0.5091]
[1730129024499,1.14919931,68611.0,68610.0,0.5091]
[1730129025380,1.17219931,68611.0,68610.0,0.5091]
[1730129025631,0.68772331,68611.0,68610.0,0.5091]
[1730129025859,0.69272331,68611.0,68610.0,0.5091]
[1730129026531,0.71556289,68611.0,68610.0,0.5091]
[1730129026945,0.40472331,68611.0,68610.0,0.5091]
[1730129027435,0.41872331,68611.0,68610.0,0.6091]
[1730129027670,0.1612195,68611.0,68610.0,0.6091]
[1730129027889,0.1472195,68611.0,68610.0,0.6091]
[1730129028169,0.0014705,68611.0,68610.0,0.6091]
[1730129028411,0.1752195,68611.0,68610.0,0.6091]
[1730129028633,0.0154705,68611.0,68610.0,0.6091]
[1730129028827,0.0014705,68611.0,68610.0,0.6091]
[1730129029078,0.0014705,68611.0,68610.0,0.6067]
[1730129029533,0.0154705,68611.0,68610.0,0.6067]
[1730129029757,0.0014705,68611.0,68610.0,0.6067]
[1730129029983,0.0014705,68611.0,68610.0,0.7626]
[1730129030202,0.0014705,68611.0,68610.0,0.7646]
[1730129030876,0.0024705,68611.0,68610.0,0.910351]
[1730129031108,0.0024705,68611.0,68610.0,1.14325481]
[1730129031326,0.0014705,68611.0,68610.0,1.14325481]
[1730129031575,0.0014705,68611.0,68610.0,1.14125481]
[1730129031803,0.0034705,68611.0,68610.0,1.14225481]
[1730129032224,0.0014705,68611.0,68610.0,1.14125481]
[1730129032433,0.0024705,68611.0,68610.0,1.14225481]
[1730129032659,0.0034705,68611.0,68610.0,1.14225481]
[1730129032877,0.0024705,68611.0,68610.0,0.990751]
[1730129033104,0.0034705,68611.0,68610.0,0.991751]
[1730129033333,0.0034705,68611.0,68610.0,0.846]
[1730129033553,0.1492195,68611.0,68610.0,0.846]
[1730129033773,0.1482195,68611.0,68610.0,0.846]
[1730129034217,0.1492195,68611.0,68610.0,0.846]
[1730129034506,0.1482195,68611.0,68610.0,0.845]
[1730129034724,0.1482195,68611.0,68610.0,0.846]
[1730129034968,0.0024705,68611.0,68610.0,0.846]
[1730129035637,0.0024705,68611.0,68610.0,0.845]
[1730129035859,0.0034705,68611.0,68610.0,0.846]
[1730129040362,0.0034705,68611.0,68610.0,0.6077]
[1730129040570,0.1492195,68611.0,68610.0,0.608522]
[1730129040854,0.0034705,68611.0,68610.0,0.608522]
[1730129041307,0.0014705,68611.0,68610.0,0.753273]
[1730129041539,0.0154705,68611.0,68610.0,0.753273]
[1730129041775,0.0294705,68611.0,68610.0,0.987773]
[1730129041991,0.0294705,68611.0,68610.0,0.842022]
[1730129042215,0.0294705,68611.0,68610.0,0.987773]
[1730129042467,0.0294705,68611.0,68610.0,0.988773]
[1730129043641,0.0294705,68611.0,68610.0,0.843022]
[1730129043864,0.0014705,68611.0,68610.0,0.842022]
[1730129044101,0.0024705,68611.0,68610.0,0.842022]
[1730129044340,0.0034705,68611.0,68610.0,0.988773]
[1730129044566,0.0024705,68611.0,68610.0,0.988773]
[1730129045529,0.0034705,68611.0,68610.0,0.843022]
[1730129045778,0.0034705,68611.0,68610.0,0.796674]
[1730129045994,0.0034705,68611.0,68610.0,0.942425]
[1730129046477,0.0034705,68611.0,68610.0,1.09292881]
[1730129046941,0.0034705,68611.0,68610.0,1.13646136]
[1730129047181,0.00297544,68611.0,68610.0,1.09292881]
[1730129047425,0.00297544,68611.0,68610.0,1.09971939]
[1730129047656,0.00297544,68611.0,68610.0,1.19971939]
[1730129048330,0.2176026,68621.0,68610.0,1.19971939]
[1730129048331,0.2176026,68621.0,68620.0,0.39523]
[1730129048554,0.2176026,68621.0,68620.0,0.71660559]
[1730129048785,0.001646,68627.0,68626.0,0.227017]
[1730129049030,0.001646,68627.0,68626.0,1.56584259]
[1730129049452,0.001646,68627.0,68626.0,1.73671437]
[1730129049702,0.001646,68627.0,68626.0,1.56584259]
[1730129050782,0.001646,68627.0,68626.0,1.73671437]
[1730129051028,0.003646,68627.0,68626.0,1.75371437]
[1730129051268,0.003646,68627.0,68626.0,1.58284259]
[1730129051490,0.003646,68627.0,68626.0,1.75371437]
[1730129051707,0.003646,68627.0,68626.0,1.58284259]
[1730129056802,0.003646,68627.0,68626.0,1.43233878]
[1730129058649,0.003646,68627.0,68626.0,1.75371437]
[1730129058877,0.003646,68627.0,68626.0,1.58284259]
[1730129060946,0.003646,68627.0,68626.0,1.75371437]
[1730129061183,0.001646,68630.0,68629.0,0.14571]
[1730129061406,0.001646,68630.0,68629.0,0.29621381]
[1730129061628,0.001646,68630.0,68629.0,1.14544381]
[1730129062719,0.002646,68630.0,68629.0,1.48474381]
[1730129063165,0.2176026,68645.0,68640.0,0.376987]
[1730129063402,0.2176026,68645.0,68640.0,1.54752259]
[1730129063873,0.2176026,68660.0,68640.0,1.54752259]
[1730129064094,0.002,68656.0,68640.0,1.54752259]
[1730129064331,0.002,68655.0,68640.0,1.54752259]
[1730129064548,0.002,68653.0,68640.0,1.54752259]
[1730129064764,0.002,68656.0,68640.0,1.54752259]
[1730129064985,0.002646,68641.0,68640.0,1.55852259]
[1730129065200,0.001646,68641.0,68640.0,1.54752259]
[1730129065650,0.002646,68641.0,68640.0,1.55852259]
[1730129066100,0.003646,68641.0,68640.0,1.57252259]
[1730129066854,0.001646,68641.0,68640.0,1.56152259]
[1730129067083,0.002646,68641.0,68640.0,1.56152259]
[1730129067301,0.002646,68641.0,68640.0,1.67552259]
[1730129067522,0.001646,68641.0,68640.0,1.64752259]
[1730129068221,0.001646,68641.0,68640.0,1.66152259]
[1730129068887,0.002646,68641.0,68640.0,1.67552259]
[1730129073378,0.002646,68641.0,68640.0,1.71893624]
[1730129074030,0.002646,68641.0,68640.0,1.67552259]
[1730129074246,0.2176026,68651.0,68647.0,0.31654378]
[1730129074694,0.002,68659.0,68647.0,1.16566378]
[1730129075243,0.2176026,68660.0,68647.0,1.31616759]
[1730129075709,0.00265,68648.0,68647.0,1.33016759]
[1730129076142,0.2176026,68660.0,68653.0,0.17087178]
[1730129076365,0.2176026,68660.0,68654.0,0.145656]
[1730129076619,0.2176026,68660.0,68654.0,0.994726]
[1730129076866,0.147639,68663.0,68654.0,0.994726]
[1730129077082,0.002,68662.0,68654.0,0.994726]
[1730129077301,0.002,68662.0,68654.0,0.84907]
[1730129077302,0.002,68659.0,68654.0,0.84907]
[1730129077552,0.003,68660.0,68654.0,0.85507]
[1730129077761,0.003,68660.0,68654.0,0.84907]
[1730129078211,0.002,68659.0,68654.0,0.85007]
[1730129078448,0.002,68659.0,68654.0,0.84907]
[1730129078940,0.002,68659.0,68654.0,0.85007]
[1730129079211,0.009,68663.0,68654.0,0.85007]
[1730129079457,0.009,68663.0,68656.0,0.291305]
[1730129079458,0.004,68663.0,68656.0,0.291305]
[1730129079691,0.004,68663.0,68656.0,0.145653]
[1730129079938,0.004,68663.0,68657.0,0.84905]
[1730129080170,0.0228213,68662.0,68657.0,0.84905]
[1730129080461,0.0228213,68662.0,68658.0,0.145648]
[1730129080673,0.0228213,68662.0,68659.0,0.145646]
[1730129080902,0.0228213,68662.0,68659.0,0.84904]
[1730129081642,0.0228213,68662.0,68659.0,0.994686]
[1730129081862,0.0268213,68662.0,68659.0,0.994686]
[1730129082329,0.0318213,68662.0,68660.0,0.00291236]
[1730129082826,0.0318213,68662.0,68661.0,0.84903]
[1730129082827,0.0268213,68662.0,68661.0,0.84903]
[1730129083289,0.0228213,68662.0,68661.0,0.84903]
[1730129083509,0.1684613,68662.0,68661.0,0.84903]
[1730129083764,0.14764,68662.0,68661.0,0.84903]
[1730129084230,0.14764,68662.0,68661.0,0.86003]
[1730129084934,0.14764,68662.0,68661.0,0.85603]
[1730129085428,0.14764,68662.0,68661.0,0.84903]
[1730129085661,0.14764,68662.0,68661.0,0.85303]
[1730129086359,0.14764,68662.0,68661.0,0.85403]
[1730129087745,0.149284,68662.0,68661.0,0.85403]
[1730129088441,0.230884,68662.0,68661.0,0.85003]
[1730129088918,0.54198781,68662.0,68661.0,0.85103]
[1730129089160,0.54198781,68662.0,68661.0,0.85003]
[1730129089161,0.65198781,68662.0,68661.0,0.85003]
[1730129089618,0.65198781,68662.0,68661.0,0.85103]
[1730129089619,0.65598781,68662.0,68661.0,0.85103]
[1730129089845,0.67898781,68662.0,68661.0,0.85103]
[1730129090335,3.86923072,68662.0,68661.0,0.85003]
[1730129090567,4.29069847,68662.0,68661.0,0.84903]
[1730129090798,4.16713447,68662.0,68661.0,0.60563]
[1730129091011,4.16813447,68662.0,68661.0,0.52653]
[1730129091254,4.12558847,68662.0,68661.0,0.52653]
[1730129091943,4.13958847,68662.0,68661.0,0.52753]
[1730129092384,2.76570447,68662.0,68661.0,0.52653]
[1730129092611,2.76570447,68662.0,68661.0,0.52753]
[1730129092612,2.01452047,68662.0,68661.0,0.52753]
[1730129092840,2.01052047,68662.0,68661.0,0.52653]
[1730129093072,1.74780247,68662.0,68661.0,0.52653]
[1730129093303,1.72676847,68662.0,68661.0,0.52753]
[1730129094677,1.87727228,68662.0,68661.0,0.52753]
[1730129094899,1.88927228,68662.0,68661.0,0.52753]
[1730129095871,2.06014406,68662.0,68661.0,0.302972]
[1730129096086,0.676566,68650.0,68649.0,0.2176026]
[1730129096310,3.48516537,68650.0,68649.0,0.2176026]
[1730129096549,0.162683,68642.0,68640.0,0.1]
[1730129096782,0.58512164,68642.0,68640.0,0.1]
[1730129096998,0.157685,68641.0,68640.0,0.1]
[1730129097227,0.30925186,68641.0,68640.0,0.1]
[1730129097457,0.30818881,68641.0,68640.0,0.1]
[1730129099174,0.31318881,68641.0,68640.0,0.1]
[1730129099408,0.31318881,68641.0,68640.0,0.101]
[1730129099409,0.32318881,68641.0,68640.0,0.101]
[1730129099622,0.33718881,68641.0,68640.0,0.102]
[1730129100060,0.32318881,68641.0,68640.0,0.101]
[1730129100286,0.33202019,68641.0,68640.0,0.100822]
[1730129100562,0.43202019,68641.0,68640.0,0.100822]
[1730129100778,1.51293719,68641.0,68640.0,0.100822]
[1730129101013,1.52693719,68641.0,68640.0,0.101822]
[1730129101451,1.52693719,68641.0,68611.0,0.076022]
[1730129101452,0.268,68631.0,68611.0,0.076022]
[1730129101702,1.17091642,68631.0,68628.0,0.2176026]
[1730129101919,3.51715237,68631.0,68620.0,0.2176026]
[1730129102166,3.51715237,68631.0,68611.0,0.076022]
[1730129102167,0.258747,68612.0,68611.0,0.000822]
[1730129102408,0.60312259,68612.0,68611.0,0.000822]
[1730129103732,0.61712259,68612.0,68611.0,0.000822]
[1730129104189,0.59412259,68612.0,68611.0,0.000822]
[1730129104422,0.61712259,68612.0,68611.0,0.000822]
[1730129104665,0.42325081,68612.0,68611.0,0.000822]
[1730129105335,0.43725081,68612.0,68611.0,0.001822]
[1730129105818,0.44413079,68612.0,68611.0,0.001822]
[1730129106040,0.46697157,68612.0,68611.0,0.439062]
[1730129106509,0.48997157,68612.0,68611.0,0.439062]
[1730129110729,0.46697157,68612.0,68611.0,0.439062]
[1730129112250,0.19958778,68612.0,68611.0,0.518662]
[1730129112718,0.32725081,68612.0,68611.0,0.518662]
[1730129112928,0.33225081,68612.0,68611.0,0.439062]
[1730129113839,0.33725081,68612.0,68611.0,0.439062]
[1730129114705,0.33717774,68612.0,68611.0,0.439062]
[1730129116174,0.33217774,68612.0,68611.0,0.439062]
[1730129116403,0.17667393,68612.0,68611.0,0.439062]
[1730129117021,0.17367393,68612.0,68611.0,0.439062]
[1730129117309,0.19951335,68612.0,68611.0,0.439062]
[1730129118248,0.19651335,68612.0,68611.0,0.439062]
[1730129119341,0.19951335,68612.0,68611.0,0.439062]
[1730129120232,0.19651335,68612.0,68611.0,0.439062]
[1730129121394,0.05076635,68612.0,68611.0,0.695362]
[1730129121662,0.05076635,68612.0,68611.0,0.841111]
[1730129122136,0.02792693,68612.0,68611.0,0.695362]
[1730129122373,0.17367393,68612.0,68611.0,0.695362]
[1730129122594,0.145747,68612.0,68611.0,0.694362]
[1730129122813,0.146747,68612.0,68611.0,0.711362]
[1730129123030,0.146747,68612.0,68611.0,0.703362]
[1730129123251,0.148393,68612.0,68611.0,0.703362]
[1730129123473,0.162393,68612.0,68611.0,0.704362]
[1730129123725,0.162393,68612.0,68611.0,0.703362]
[1730129124171,0.175393,68612.0,68611.0,0.695362]
[1730129124388,0.189393,68612.0,68611.0,0.696362]
[1730129126474,0.189393,68612.0,68611.0,0.519562]
[1730129127149,0.34489681,68612.0,68611.0,0.440062]
[1730129128510,0.189393,68612.0,68611.0,0.440062]
[1730129129437,0.4069956,68612.0,68611.0,0.440062]
[1730129129659,0.189393,68612.0,68611.0,0.440062]
[1730129131526,0.194393,68612.0,68611.0,0.440062]
[1730129132438,0.34989681,68612.0,68611.0,0.440062]
[1730129132949,0.35289681,68612.0,68611.0,0.440062]
[1730129134719,0.37573648,68612.0,68611.0,0.440062]
[1730129134969,1.12594448,68612.0,68611.0,0.440062]
[1730129135178,0.66336648,68612.0,68611.0,0.440062]
[1730129136266,0.64936648,68612.0,68611.0,0.440062]
[1730129136566,0.63536648,68612.0,68611.0,0.439062]
[1730129136781,0.63536648,68612.0,68611.0,0.440062]
[1730129136782,0.64936648,68612.0,68611.0,0.440062]
[1730129136993,0.63536648,68612.0,68611.0,0.439062]
[1730129137217,0.80966648,68612.0,68611.0,0.439062]
[1730129137433,0.85351432,68612.0,68611.0,0.438062]
[1730129137644,0.96517029,68612.0,68611.0,0.438062]
[1730129137903,0.96517029,68612.0,68611.0,0.439062]
[1730129138127,1.14804207,68612.0,68611.0,0.351612]
[1730129138355,1.16204207,68612.0,68611.0,0.351612]
[1730129139022,1.16004207,68612.0,68611.0,0.351612]
[1730129139233,1.1372024,68612.0,68611.0,0.351612]
[1730129139671,1.1392024,68612.0,68611.0,0.351612]
[1730129140095,0.98869859,68612.0,68611.0,0.351612]
[1730129140581,0.98669859,68612.0,68611.0,0.351612]
[1730129142580,1.00954287,68612.0,68611.0,0.351612]
[1730129143266,1.01154287,68612.0,68611.0,0.351612]
[1730129143493,1.00954287,68612.0,68611.0,0.351612]
[1730129143714,1.01154287,68612.0,68611.0,0.351612]
[1730129144185,1.16204668,68612.0,68611.0,0.351612]
[1730129144653,1.01154287,68612.0,68611.0,0.205862]
[1730129145544,1.01154287,68612.0,68611.0,0.147562]
[1730129145751,1.01154287,68612.0,68611.0,0.060112]
[1730129145982,1.01154287,68612.0,68611.0,0.030962]
[1730129146196,0.84067109,68612.0,68611.0,0.030962]
[1730129146428,0.84067109,68612.0,68611.0,0.031785]
[1730129146683,0.83867109,68612.0,68611.0,0.031785]
[1730129146880,0.84067109,68612.0,68611.0,0.031785]
[1730129147327,0.81782681,68612.0,68611.0,0.031785]
[1730129148015,1.12135289,68612.0,68611.0,0.031785]
[1730129148521,0.98869859,68612.0,68611.0,0.031785]
[1730129149397,0.81782681,68612.0,68611.0,0.031785]
[1730129150321,0.81782681,68612.0,68611.0,0.0189397]
[1730129150581,1.01154333,68612.0,68611.0,0.0189397]
[1730129151011,0.84067155,68612.0,68611.0,0.0189397]
[1730129151237,0.99117536,68612.0,68611.0,0.0189397]
[1730129151457,1.16204714,68612.0,68611.0,0.0189397]
[1730129152179,1.01154333,68612.0,68611.0,0.0189397]
[1730129154393,0.84691333,68612.0,68611.0,0.0189397]
[1730129154820,4.69851933,68612.0,68611.0,0.0189397]
[1730129155032,4.49550733,68612.0,68611.0,0.0189397]
[1730129156122,4.38051133,68612.0,68611.0,0.0189397]
[1730129157248,4.21364955,68612.0,68611.0,0.0189397]
[1730129157472,1.48616081,68612.0,68611.0,0.0189397]
[1730129157731,0.33589681,68612.0,68611.0,0.1021397]
[1730129157936,0.33889681,68612.0,68611.0,0.2683397]
[1730129158677,0.33389681,68612.0,68611.0,0.2683397]
[1730129158880,0.178393,68612.0,68611.0,0.2683397]
[1730129159317,0.164393,68612.0,68611.0,0.2683397]
[1730129159764,0.164393,68612.0,68611.0,0.2673397]
[1730129159992,0.178393,68612.0,68611.0,0.2673397]
[1730129164779,0.32889681,68612.0,68611.0,0.2673397]
[1730129165024,0.33889681,68612.0,68611.0,0.1011397]
[1730129165258,2.94102985,68612.0,68611.0,0.1011397]
[1730129165533,0.531749,68611.0,68610.0,7e-07]
[1730129165746,3.79297781,68611.0,68610.0,7e-07]
[1730129165969,0.84775662,68611.0,68610.0,7e-07]
[1730129166401,0.84775662,68611.0,68610.0,0.3498007]
[1730129166861,5.32867537,68611.0,68610.0,0.2040507]
[1730129167068,5.16267537,68611.0,68610.0,0.2040507]
[1730129167336,5.14674737,68611.0,68610.0,0.2040507]
[1730129167556,4.55267837,68611.0,68610.0,0.2040507]
[1730129167772,4.46672037,68611.0,68610.0,0.2040507]
[1730129170020,4.61722418,68611.0,68610.0,0.2040507]
[1730129170740,4.66047109,68611.0,68610.0,0.1465737]
[1730129170960,4.61722418,68611.0,68610.0,0.0175374]
[1730129171210,4.68209455,68611.0,68610.0,0.0175374]
[1730129171466,4.46672037,68611.0,68610.0,0.0175374]
[1730129173284,4.48956339,68611.0,68610.0,0.0175374]
[1730129173507,4.47956339,68611.0,68610.0,0.0175374]
[1730129173719,4.48956339,68611.0,68610.0,0.0175374]
[1730129174354,4.50996706,68611.0,68610.0,0.0175374]
[1730129174581,4.49996706,68611.0,68610.0,0.0175374]
[1730129174797,4.50996706,68611.0,68610.0,0.0175374]
[1730129175029,4.46672037,68611.0,68610.0,0.0175374]
[1730129175725,4.26492637,68611.0,68610.0,0.0175374]
[1730129176370,4.32978433,68611.0,68610.0,0.0175374]
[1730129176809,4.35266851,68611.0,68610.0,0.0175374]
[1730129177020,4.28776924,68611.0,68610.0,0.0175374]
[1730129177230,4.43827305,68611.0,68610.0,0.0175374]
[1730129178352,4.59860705,68611.0,68610.0,0.0175374]
[1730129178576,4.45223705,68611.0,68610.0,0.0175374]
[1730129178821,4.43630905,68611.0,68610.0,0.0175374]
[1730129179009,4.42303705,68611.0,68610.0,0.0175374]
[1730129179491,4.51210468,68611.0,68610.0,0.0175374]
[1730129179701,4.36160087,68611.0,68610.0,0.0175374]
[1730129180153,1.23725873,68611.0,68610.0,0.0971374]
[1730129180374,1.3046638,68611.0,68610.0,0.0971374]
[1730129180600,1.23972346,68611.0,68610.0,0.0971374]
[1730129180808,1.32625582,68611.0,68610.0,0.0971374]
[1730129181030,1.28356264,68611.0,68610.0,0.0971374]
[1730129181491,1.30656264,68611.0,68610.0,0.0971374]
[1730129182139,1.30820864,68611.0,68610.0,0.0971374]
[1730129182571,1.41647094,68611.0,68610.0,0.0971374]
[1730129183034,1.39482524,68611.0,68610.0,0.0971374]
[1730129183259,1.30820864,68611.0,68610.0,0.0971374]
[1730129183489,1.26436946,68611.0,68610.0,0.0971374]
[1730129183686,1.32932916,68611.0,68610.0,0.0971374]
[1730129183899,1.26436946,68611.0,68610.0,0.0971374]
[1730129184367,1.32932916,68611.0,68610.0,0.0971374]
[1730129185457,1.30821252,68611.0,68610.0,0.0971374]
[1730129185708,1.59735015,68611.0,68610.0,0.0175374]
[1730129185932,1.4890843,68611.0,68610.0,0.0175374]
[1730129186145,1.4910843,68611.0,68610.0,0.0175374]
[1730129186821,1.4770843,68611.0,68610.0,0.0175374]
[1730129187047,1.4610843,68611.0,68610.0,4e-07]
[1730129187261,1.27183211,68611.0,68610.0,4e-07]
[1730129187478,1.27383211,68611.0,68610.0,4e-07]
[1730129187987,0.258798,68588.0,68587.0,0.2176026]
[1730129188196,0.60317359,68588.0,68587.0,0.2176026]
[1730129188433,0.258812,68581.0,68580.0,0.2632]
[1730129188650,2.22824064,68581.0,68580.0,0.2632]
[1730129188884,2.27045242,68581.0,68580.0,0.2632]
[1730129189589,0.286815,68580.0,68579.0,0.000823]
[1730129189814,2.58010686,68580.0,68579.0,0.000823]
[1730129190028,1.39072964,68580.0,68579.0,0.000823]
[1730129190499,1.29364581,68580.0,68579.0,0.000823]
[1730129190951,1.29364581,68580.0,68579.0,0.264023]
[1730129190952,0.56476681,68580.0,68579.0,0.264023]
[1730129191174,0.40931881,68580.0,68579.0,0.264023]
[1730129191838,0.40431881,68580.0,68579.0,0.264023]
[1730129192061,0.262815,68580.0,68579.0,0.264023]
[1730129192294,0.276815,68580.0,68579.0,0.264023]
[1730129192510,0.248815,68580.0,68579.0,0.264023]
[1730129192730,0.262815,68580.0,68579.0,0.264023]
[1730129192916,0.276815,68580.0,68579.0,0.264023]
[1730129193155,0.248815,68580.0,68579.0,0.264023]
[1730129193628,0.276815,68580.0,68579.0,0.701473]
[1730129194537,0.60319059,68580.0,68579.0,0.701473]
[1730129194804,0.43231881,68580.0,68579.0,0.701473]
[1730129196211,0.014,68580.0,68579.0,0.701473]
[1730129196445,0.0228487,68586.0,68579.0,0.701473]
[1730129196446,0.0228487,68586.0,68583.0,0.145807]
[1730129196685,0.0228487,68586.0,68585.0,0.57297578]
[1730129196914,0.148779,68597.0,68588.0,0.1763]
[1730129197138,0.003,68604.0,68594.0,0.2516]
[1730129197390,0.003,68604.0,68590.0,0.17087178]
[1730129197391,0.1395026,68596.0,68595.0,0.40029835]
[1730129197633,0.3633686,68603.0,68597.0,0.2516]
[1730129197875,0.145773,68600.0,68599.0,0.0753]
[1730129198109,0.2176026,68603.0,68599.0,0.0753]
[1730129198377,0.003,68602.0,68601.0,0.0813]
[1730129198620,0.291526,68605.0,68601.0,0.51861]
[1730129198841,0.003,68604.0,68601.0,0.51861]